[Event "Live Chess"]
[Site "Chess.com"]
[Date "2023.05.20"]
[Round "-"]
[White "Tilbs_12"]
[Black "Nazarenko_vital"]
[Result "0-1"]
[WhiteElo "1599"]
[BlackElo "1584"]
[TimeControl "300"]
[EndTime "9:35:35 PDT"]
[Termination "Nazarenko_vital won by checkmate"]

1. e4 {[%clk 0:04:58.2]} 1... d5 {[%clk 0:04:57.7]} 2. exd5 {[%clk 0:04:56.9]}
2... Qxd5 {[%clk 0:04:54.7]} 3. Nc3 {[%clk 0:04:56.6]} 3... Qa5 {[%clk
0:04:53.3]} 4. Bc4 {[%clk 0:04:53.7]} 4... Nf6 {[%clk 0:04:52.5]} 5. Nf3 {[%clk
0:04:50.7]} 5... Bg4 {[%clk 0:04:51.3]} 6. O-O {[%clk 0:04:46.7]} 6... e6 {[%clk
0:04:49.9]} 7. d3 {[%clk 0:04:39.4]} 7... c6 {[%clk 0:04:46.8]} 8. h3 {[%clk
0:04:34.3]} 8... Bh5 {[%clk 0:04:44.5]} 9. Bf4 {[%clk 0:04:27.1]} 9... Qd8
{[%clk 0:04:41.1]} 10. Re1 {[%clk 0:04:16.3]} 10... Bd6 {[%clk 0:04:39.8]} 11.
Bh2 {[%clk 0:04:08]} 11... Bxh2+ {[%clk 0:04:36.4]} 12. Kxh2 {[%clk 0:04:06.1]}
12... Qc7+ {[%clk 0:04:33.8]} 13. Kg1 {[%clk 0:04:03.9]} 13... Nbd7 {[%clk
0:04:33.3]} 14. Ne4 {[%clk 0:03:58.8]} 14... Nxe4 {[%clk 0:04:29.1]} 15. Rxe4
{[%clk 0:03:56.9]} 15... O-O-O {[%clk 0:04:27.5]} 16. Qd2 {[%clk 0:03:46.9]}
16... Nf6 {[%clk 0:04:24.9]} 17. Ree1 {[%clk 0:03:43.6]} 17... Bxf3 {[%clk
0:04:23.7]} 18. gxf3 {[%clk 0:03:42.4]} 18... h5 {[%clk 0:03:59.5]} 19. a4
{[%clk 0:03:37.7]} 19... Rh6 {[%clk 0:03:56.7]} 20. Kh1 {[%clk 0:03:27.4]} 20...
Nd5 {[%clk 0:03:41.6]} 21. Bxd5 {[%clk 0:03:14.7]} 21... Rxd5 {[%clk 0:03:38]}
22. c4 {[%clk 0:03:06.4]} 22... Rf5 {[%clk 0:03:18.8]} 23. Re3 {[%clk
0:03:00.9]} 23... Qf4 {[%clk 0:03:10.6]} 24. Qe2 {[%clk 0:02:58.4]} 24... Qh4
{[%clk 0:03:00]} 25. Kh2 {[%clk 0:02:55]} 25... Rg6 {[%clk 0:02:54.2]} 26. Re4
{[%clk 0:02:28.9]} 26... Qg5 {[%clk 0:02:43.3]} 27. Qf1 {[%clk 0:02:15.2]} 27...
Rxf3 {[%clk 0:02:37]} 28. Re2 {[%clk 0:02:03.3]} 28... Qf4+ {[%clk 0:02:33.1]}
29. Kh1 {[%clk 0:02:00.3]} 29... Rgg3 {[%clk 0:02:08.7]} 30. Kh2 {[%clk
0:01:42.5]} 30... Rxh3+ {[%clk 0:02:05.4]} 31. Kg2 {[%clk 0:01:39.1]} 31... Qg4#
{[%clk 0:02:01.8]} 0-1

[Event "Live Chess"]
[Site "Chess.com"]
[Date "2023.05.20"]
[Round "-"]
[White "Tushinskiy"]
[Black "Argrath"]
[Result "1-0"]
[WhiteElo "2109"]
[BlackElo "1426"]
[TimeControl "300"]
[EndTime "9:35:35 PDT"]
[Termination "Tushinskiy won by resignation"]

1. d4 {[%clk 0:04:57.3]} 1... Nf6 {[%clk 0:04:54.3]} 2. c3 {[%clk 0:04:57.2]}
2... d5 {[%clk 0:04:50.5]} 3. Nf3 {[%clk 0:04:57.1]} 3... Bf5 {[%clk 0:04:44.2]}
4. Bf4 {[%clk 0:04:50.9]} 4... e6 {[%clk 0:04:41.8]} 5. Bg3 {[%clk 0:04:48.7]}
5... h6 {[%clk 0:04:40.1]} 6. Nbd2 {[%clk 0:04:47.1]} 6... Bd6 {[%clk
0:04:37.5]} 7. e3 {[%clk 0:04:45.7]} 7... Bxg3 {[%clk 0:04:36]} 8. hxg3 {[%clk
0:04:45.6]} 8... Nbd7 {[%clk 0:04:34.5]} 9. b4 {[%clk 0:04:44.4]} 9... c6 {[%clk
0:04:32.1]} 10. Qb3 {[%clk 0:04:33.4]} 10... O-O {[%clk 0:04:26.4]} 11. Be2
{[%clk 0:04:31.2]} 11... b5 {[%clk 0:04:18.4]} 12. O-O {[%clk 0:04:29.1]} 12...
Nb6 {[%clk 0:04:15.8]} 13. Ne5 {[%clk 0:04:26.4]} 13... Nfd7 {[%clk 0:04:12.5]}
14. Nxc6 {[%clk 0:04:24.2]} 14... Qc7 {[%clk 0:04:10.5]} 15. Ne7+ {[%clk
0:04:23.2]} 15... Kh8 {[%clk 0:04:08.4]} 16. Nxf5 {[%clk 0:04:23.1]} 16... exf5
{[%clk 0:04:06.2]} 17. Bxb5 {[%clk 0:04:23]} 1-0

[Event "Live Chess"]
[Site "Chess.com"]
[Date "2023.05.20"]
[Round "-"]
[White "DianaSpencer1"]
[Black "RoaringKnights"]
[Result "0-1"]
[WhiteElo "546"]
[BlackElo "925"]
[TimeControl "300"]
[EndTime "9:35:36 PDT"]
[Termination "RoaringKnights won by checkmate"]

1. e4 {[%clk 0:04:51.1]} 1... c6 {[%clk 0:04:58.5]} 2. f3 {[%clk 0:04:43.6]}
2... d5 {[%clk 0:04:53.4]} 3. Bd3 {[%clk 0:04:17.8]} 3... dxe4 {[%clk
0:04:49.3]} 4. fxe4 {[%clk 0:04:11.9]} 4... Nf6 {[%clk 0:04:45.1]} 5. Nc3 {[%clk
0:04:05.5]} 5... Bg4 {[%clk 0:04:43.4]} 6. Be2 {[%clk 0:03:56.8]} 6... Bxe2
{[%clk 0:04:40.8]} 7. Kxe2 {[%clk 0:03:54.6]} 7... e6 {[%clk 0:04:38.4]} 8. Ke1
{[%clk 0:03:53.1]} 8... Qd4 {[%clk 0:04:32.1]} 9. Nf3 {[%clk 0:03:19.8]} 9...
Qb6 {[%clk 0:04:25.1]} 10. d3 {[%clk 0:03:12.7]} 10... Ng4 {[%clk 0:04:21.4]}
11. h3 {[%clk 0:03:02]} 11... Qf2# {[%clk 0:04:19.1]} 0-1

[Event "Live Chess"]
[Site "Chess.com"]
[Date "2023.05.20"]
[Round "-"]
[White "wot-not"]
[Black "SupremeTactician"]
[Result "0-1"]
[WhiteElo "1465"]
[BlackElo "2405"]
[TimeControl "300"]
[EndTime "9:35:38 PDT"]
[Termination "SupremeTactician won by resignation"]

1. e4 {[%clk 0:04:56.2]} 1... e5 {[%clk 0:04:59.2]} 2. f4 {[%clk 0:04:55.1]}
2... exf4 {[%clk 0:04:57.9]} 3. Nf3 {[%clk 0:04:54.3]} 3... g5 {[%clk
0:04:57.2]} 4. d4 {[%clk 0:04:53.2]} 4... Bg7 {[%clk 0:04:54.5]} 5. Bc4 {[%clk
0:04:50.8]} 5... d6 {[%clk 0:04:53.5]} 6. O-O {[%clk 0:04:49.9]} 6... Nc6 {[%clk
0:04:51.1]} 7. c3 {[%clk 0:04:48.8]} 7... h6 {[%clk 0:04:48.8]} 8. Nbd2 {[%clk
0:04:45.1]} 8... Nge7 {[%clk 0:04:47.8]} 9. e5 {[%clk 0:04:40.1]} 9... dxe5
{[%clk 0:04:45.6]} 10. Nxe5 {[%clk 0:04:39.3]} 10... Nxe5 {[%clk 0:04:44.4]} 11.
dxe5 {[%clk 0:04:38.8]} 11... O-O {[%clk 0:04:41.9]} 12. Kh1 {[%clk 0:04:37.7]}
12... Bxe5 {[%clk 0:04:40.2]} 13. Qh5 {[%clk 0:04:32.2]} 13... Bg7 {[%clk
0:04:38.5]} 14. Nf3 {[%clk 0:04:30.5]} 14... Be6 {[%clk 0:04:34.8]} 15. Bxe6
{[%clk 0:04:19.7]} 15... fxe6 {[%clk 0:04:33.3]} 16. Bd2 {[%clk 0:04:15.7]}
16... Qd3 {[%clk 0:04:27.3]} 17. Rad1 {[%clk 0:04:12]} 17... Rad8 {[%clk
0:04:25.7]} 18. h4 {[%clk 0:03:56.4]} 18... Nf5 {[%clk 0:04:06.1]} 19. Kh2
{[%clk 0:03:45.2]} 19... Ng3 {[%clk 0:04:03.2]} 20. Qg6 {[%clk 0:03:32.9]} 20...
Qxg6 {[%clk 0:04:01.4]} 0-1

[Event "Live Chess"]
[Site "Chess.com"]
[Date "2023.05.20"]
[Round "-"]
[White "domrobson"]
[Black "Kr1xot4_XGOD"]
[Result "0-1"]
[WhiteElo "1724"]
[BlackElo "2202"]
[TimeControl "300"]
[EndTime "9:35:48 PDT"]
[Termination "Kr1xot4_XGOD won by resignation"]

1. d4 {[%clk 0:04:54.6]} 1... d5 {[%clk 0:04:58.5]} 2. c4 {[%clk 0:04:52.6]}
2... c5 {[%clk 0:04:57]} 3. cxd5 {[%clk 0:04:51.1]} 3... Qxd5 {[%clk 0:04:54.2]}
4. Nf3 {[%clk 0:04:37.1]} 4... e6 {[%clk 0:04:42.1]} 5. Nc3 {[%clk 0:04:32.1]}
5... Qd6 {[%clk 0:04:36.6]} 6. e4 {[%clk 0:04:25]} 6... cxd4 {[%clk 0:04:30.4]}
7. Nxd4 {[%clk 0:04:17.9]} 7... Nf6 {[%clk 0:04:29.5]} 8. Bb5+ {[%clk
0:04:15.4]} 8... Bd7 {[%clk 0:04:25.4]} 9. O-O {[%clk 0:04:14.1]} 9... Nc6
{[%clk 0:04:19.7]} 10. Bg5 {[%clk 0:03:59.3]} 10... Qxd4 {[%clk 0:03:57.9]} 11.
Bxc6 {[%clk 0:03:52.3]} 0-1

[Event "Live Chess"]
[Site "Chess.com"]
[Date "2023.05.20"]
[Round "-"]
[White "Goblinbasher"]
[Black "noobsmoker24"]
[Result "0-1"]
[WhiteElo "1200"]
[BlackElo "1376"]
[TimeControl "300"]
[EndTime "9:35:52 PDT"]
[Termination "noobsmoker24 won on time"]

1. e4 {[%clk 0:04:53.2]} 1... Nf6 {[%clk 0:04:58.5]} 2. Nc3 {[%clk 0:04:51.8]}
2... d5 {[%clk 0:04:57.6]} 3. exd5 {[%clk 0:04:36.9]} 3... Nxd5 {[%clk
0:04:57.5]} 4. d4 {[%clk 0:04:34.3]} 4... Nc6 {[%clk 0:04:53]} 5. Nf3 {[%clk
0:04:29.3]} 5... Bf5 {[%clk 0:04:41.7]} 6. Bb5 {[%clk 0:04:13.6]} 6... e6 {[%clk
0:04:21.8]} 7. O-O {[%clk 0:04:09.5]} 7... Bd6 {[%clk 0:04:06.1]} 8. Nxd5 {[%clk
0:03:48]} 8... exd5 {[%clk 0:04:02.1]} 9. Re1+ {[%clk 0:03:44.4]} 9... Be7
{[%clk 0:03:56]} 10. Bg5 {[%clk 0:03:38.9]} 10... f6 {[%clk 0:03:55]} 11. Bh4
{[%clk 0:03:29.4]} 11... O-O {[%clk 0:03:51.1]} 12. c3 {[%clk 0:03:25.6]} 12...
Bg4 {[%clk 0:03:40.1]} 13. h3 {[%clk 0:03:20]} 13... Bh5 {[%clk 0:03:38.5]} 14.
Bg3 {[%clk 0:03:13.4]} 14... Bd6 {[%clk 0:03:34.3]} 15. Bxd6 {[%clk 0:03:07.3]}
15... Qxd6 {[%clk 0:03:34.2]} 16. Qd3 {[%clk 0:03:00.1]} 16... Bg6 {[%clk
0:03:31.9]} 17. Qd2 {[%clk 0:02:54.9]} 17... a6 {[%clk 0:03:28.6]} 18. Bd3
{[%clk 0:02:51.9]} 18... Ne7 {[%clk 0:03:18.9]} 19. Bxg6 {[%clk 0:02:37.7]}
19... Nxg6 {[%clk 0:03:18.8]} 20. Re2 {[%clk 0:02:23.1]} 20... Rfe8 {[%clk
0:03:14.3]} 21. Rae1 {[%clk 0:02:22]} 21... Rxe2 {[%clk 0:03:10.5]} 22. Rxe2
{[%clk 0:02:21]} 22... c6 {[%clk 0:02:24.5]} 23. Qe1 {[%clk 0:02:19]} 23... Qd8
{[%clk 0:01:40.9]} 24. Nd2 {[%clk 0:01:50.4]} 24... Rc8 {[%clk 0:01:35.5]} 25.
Nf1 {[%clk 0:01:48.9]} 25... Rc7 {[%clk 0:01:32]} 26. Ng3 {[%clk 0:01:47.8]}
26... Re7 {[%clk 0:01:29.4]} 27. Nf5 {[%clk 0:01:44.2]} 27... Rxe2 {[%clk
0:01:27.6]} 28. Qxe2 {[%clk 0:01:43.1]} 28... Kf7 {[%clk 0:01:18.5]} 29. g4
{[%clk 0:01:31.6]} 29... Nf4 {[%clk 0:01:08.5]} 30. Qf3 {[%clk 0:01:27.6]} 30...
Ng6 {[%clk 0:01:04.8]} 31. Qg3 {[%clk 0:01:16.3]} 31... Kg8 {[%clk 0:00:50.8]}
32. Qe3 {[%clk 0:00:58.9]} 32... Kf7 {[%clk 0:00:45.9]} 33. Kg2 {[%clk
0:00:54.3]} 33... Qd7 {[%clk 0:00:38.4]} 34. Qg3 {[%clk 0:00:50.1]} 34... Kg8
{[%clk 0:00:35.7]} 35. h4 {[%clk 0:00:41.8]} 35... h6 {[%clk 0:00:34.4]} 36. h5
{[%clk 0:00:28.4]} 36... Ne7 {[%clk 0:00:30.6]} 37. Qe3 {[%clk 0:00:21.8]} 37...
Nxf5 {[%clk 0:00:27.5]} 38. gxf5 {[%clk 0:00:20.4]} 38... Qxf5 {[%clk
0:00:24.8]} 39. Qe8+ {[%clk 0:00:18.8]} 39... Kh7 {[%clk 0:00:23.3]} 40. Qg6+
{[%clk 0:00:16.6]} 40... Qxg6+ {[%clk 0:00:22.5]} 41. hxg6+ {[%clk 0:00:15.7]}
41... Kxg6 {[%clk 0:00:22.4]} 42. Kg3 {[%clk 0:00:14.8]} 42... Kf5 {[%clk
0:00:22]} 43. Kf3 {[%clk 0:00:14]} 43... g5 {[%clk 0:00:20.9]} 44. b3 {[%clk
0:00:11.8]} 44... h5 {[%clk 0:00:20.4]} 45. Kg3 {[%clk 0:00:10.7]} 45... h4+
{[%clk 0:00:19.5]} 46. Kh3 {[%clk 0:00:08.8]} 46... Ke4 {[%clk 0:00:18.6]} 47.
Kg4 {[%clk 0:00:07]} 47... f5+ {[%clk 0:00:18.2]} 48. Kxg5 {[%clk 0:00:05.8]}
48... h3 {[%clk 0:00:17.9]} 49. Kf6 {[%clk 0:00:05]} 49... h2 {[%clk 0:00:17.4]}
50. Ke6 {[%clk 0:00:04.1]} 50... h1=Q {[%clk 0:00:16.7]} 51. Kd6 {[%clk
0:00:03.8]} 51... Qf1 {[%clk 0:00:15.7]} 52. Kc7 {[%clk 0:00:03.5]} 52... Qxf2
{[%clk 0:00:14.9]} 53. Kxb7 {[%clk 0:00:03]} 53... Qxa2 {[%clk 0:00:14]} 54.
Kxc6 {[%clk 0:00:01.8]} 54... Qxb3 {[%clk 0:00:13.5]} 55. Kd6 {[%clk 0:00:01]}
55... Qxc3 {[%clk 0:00:13]} 56. Ke6 {[%clk 0:00:00.3]} 56... Qxd4 {[%clk
0:00:12.5]} 0-1

[Event "Live Chess"]
[Site "Chess.com"]
[Date "2023.05.20"]
[Round "-"]
[White "killershark69420"]
[Black "PackedNote"]
[Result "0-1"]
[WhiteElo "293"]
[BlackElo "781"]
[TimeControl "300"]
[EndTime "9:35:55 PDT"]
[Termination "PackedNote won by resignation"]

1. e4 {[%clk 0:04:58.5]} 1... e5 {[%clk 0:04:58.9]} 2. Nf3 {[%clk 0:04:54.3]}
2... Nc6 {[%clk 0:04:57.2]} 3. Nc3 {[%clk 0:04:51.3]} 3... Bb4 {[%clk
0:04:54.3]} 4. Bb5 {[%clk 0:04:47.3]} 4... Nf6 {[%clk 0:04:46.4]} 5. Bxc6 {[%clk
0:04:42.6]} 5... dxc6 {[%clk 0:04:46.3]} 6. Nxe5 {[%clk 0:04:38.5]} 6... Bxc3
{[%clk 0:04:44.3]} 7. bxc3 {[%clk 0:04:36.1]} 7... Nxe4 {[%clk 0:04:37.4]} 8. c4
{[%clk 0:04:34.2]} 8... Qe7 {[%clk 0:04:30.6]} 9. d4 {[%clk 0:04:28.3]} 9... c5
{[%clk 0:04:20.6]} 10. c3 {[%clk 0:04:23.2]} 10... cxd4 {[%clk 0:04:18.3]} 11.
cxd4 {[%clk 0:04:20.1]} 11... c5 {[%clk 0:04:17.8]} 12. Qb3 {[%clk 0:04:16.2]}
12... cxd4 {[%clk 0:04:13.2]} 13. Qb5+ {[%clk 0:03:56.5]} 13... Kf8 {[%clk
0:04:05.1]} 14. Qd5 {[%clk 0:03:52.4]} 14... Nf6 {[%clk 0:03:53.8]} 15. Qxd4
{[%clk 0:03:40.2]} 15... Be6 {[%clk 0:03:41.7]} 16. Bg5 {[%clk 0:03:33.5]} 16...
h6 {[%clk 0:03:37.5]} 17. Bxf6 {[%clk 0:03:31.2]} 17... Qxf6 {[%clk 0:03:32.2]}
18. Qd6+ {[%clk 0:03:19.5]} 18... Kg8 {[%clk 0:03:25.3]} 19. O-O {[%clk
0:03:09]} 19... Rd8 {[%clk 0:03:16.7]} 20. Qc5 {[%clk 0:02:57.3]} 20... b6
{[%clk 0:03:08]} 21. Qe3 {[%clk 0:02:46.6]} 21... Kh7 {[%clk 0:02:57.3]} 22.
Qe4+ {[%clk 0:02:41.3]} 22... g6 {[%clk 0:02:51.9]} 23. Ng4 {[%clk 0:02:34.4]}
23... Bxg4 {[%clk 0:02:45.9]} 24. Qxg4 {[%clk 0:02:32.2]} 24... Rhe8 {[%clk
0:02:40.8]} 25. h4 {[%clk 0:02:22.4]} 25... Rd4 {[%clk 0:02:29.5]} 26. Qh3
{[%clk 0:02:12.5]} 26... Rxh4 {[%clk 0:02:17.3]} 27. Qf3 {[%clk 0:02:07.9]}
27... Qxf3 {[%clk 0:02:10.7]} 28. gxf3 {[%clk 0:02:06.6]} 28... Rxc4 {[%clk
0:02:08.9]} 29. Rfc1 {[%clk 0:02:02.5]} 29... Rxc1+ {[%clk 0:02:03.3]} 30. Rxc1
{[%clk 0:02:01.1]} 30... Re2 {[%clk 0:02:00.9]} 31. Rc7 {[%clk 0:01:54.7]} 31...
Rxa2 {[%clk 0:01:59.3]} 32. Rxf7+ {[%clk 0:01:52.1]} 32... Kg8 {[%clk
0:01:58.8]} 33. Rf6 {[%clk 0:01:44.3]} 33... Kg7 {[%clk 0:01:56.6]} 34. Rc6
{[%clk 0:01:33.8]} 34... b5 {[%clk 0:01:53.3]} 35. Rc7+ {[%clk 0:01:29.6]} 35...
Kf6 {[%clk 0:01:51.4]} 36. Rb7 {[%clk 0:01:27.8]} 36... Ra5 {[%clk 0:01:44.7]}
37. Kg2 {[%clk 0:01:23]} 37... Ke6 {[%clk 0:01:37.2]} 38. Rh7 {[%clk 0:01:17.9]}
38... b4 {[%clk 0:01:30.9]} 39. Rxh6 {[%clk 0:01:15.7]} 39... Kf5 {[%clk
0:01:30.2]} 40. Kg3 {[%clk 0:01:11.7]} 40... b3 {[%clk 0:01:29.2]} 41. f4 {[%clk
0:01:05.5]} 41... b2 {[%clk 0:01:27.9]} 42. Rh1 {[%clk 0:01:03.8]} 42... Ra1
{[%clk 0:01:24.6]} 43. Rxa1 {[%clk 0:01:00.6]} 43... bxa1=Q {[%clk 0:01:24.5]}
44. Kh4 {[%clk 0:00:56.7]} 44... Qh1+ {[%clk 0:01:23.1]} 45. Kg3 {[%clk
0:00:50.1]} 45... a5 {[%clk 0:01:21]} 46. f3 {[%clk 0:00:37.1]} 46... a4 {[%clk
0:01:19.1]} 0-1

[Event "Live Chess"]
[Site "Chess.com"]
[Date "2023.05.20"]
[Round "-"]
[White "Hacker_2009"]
[Black "ethanredball"]
[Result "1-0"]
[WhiteElo "1913"]
[BlackElo "664"]
[TimeControl "300"]
[EndTime "9:35:55 PDT"]
[Termination "Hacker_2009 won by checkmate"]

1. d4 {[%clk 0:04:56.8]} 1... d5 {[%clk 0:04:57.4]} 2. Nf3 {[%clk 0:04:55.3]}
2... Bf5 {[%clk 0:04:55.5]} 3. e3 {[%clk 0:04:52.4]} 3... Nc6 {[%clk 0:04:54]}
4. c4 {[%clk 0:04:51.4]} 4... dxc4 {[%clk 0:04:52.1]} 5. Bxc4 {[%clk 0:04:49.6]}
5... Nb4 {[%clk 0:04:48.4]} 6. Qa4+ {[%clk 0:04:46]} 6... Qd7 {[%clk 0:04:41.5]}
7. Qxb4 {[%clk 0:04:43]} 7... Bxb1 {[%clk 0:04:33.2]} 8. Ne5 {[%clk 0:04:40.8]}
8... Qh3 {[%clk 0:04:29.8]} 9. gxh3 {[%clk 0:04:37.4]} 9... Bd3 {[%clk
0:04:26.9]} 10. Bxf7+ {[%clk 0:04:36.2]} 10... Kd8 {[%clk 0:04:24.9]} 11. Qxb7
{[%clk 0:04:35.3]} 11... Rb8 {[%clk 0:04:23.2]} 12. Qxb8# {[%clk 0:04:33.9]} 1-0

[Event "Live Chess"]
[Site "Chess.com"]
[Date "2023.05.20"]
[Round "-"]
[White "Driftboard"]
[Black "Crowded_House"]
[Result "0-1"]
[WhiteElo "759"]
[BlackElo "1678"]
[TimeControl "300"]
[EndTime "9:35:58 PDT"]
[Termination "Crowded_House won by checkmate"]

1. e4 {[%clk 0:04:59.5]} 1... e6 {[%clk 0:04:59.3]} 2. d4 {[%clk 0:04:57.9]}
2... d5 {[%clk 0:04:59]} 3. exd5 {[%clk 0:04:56.8]} 3... exd5 {[%clk 0:04:57.4]}
4. Nc3 {[%clk 0:04:55.4]} 4... c6 {[%clk 0:04:55.6]} 5. Nf3 {[%clk 0:04:53.4]}
5... Bd6 {[%clk 0:04:54.7]} 6. Be3 {[%clk 0:04:52]} 6... Ne7 {[%clk 0:04:53]} 7.
Bd3 {[%clk 0:04:50.9]} 7... h6 {[%clk 0:04:50.5]} 8. O-O {[%clk 0:04:49.8]} 8...
O-O {[%clk 0:04:47.9]} 9. h3 {[%clk 0:04:48.8]} 9... Bf5 {[%clk 0:04:45.6]} 10.
Bxf5 {[%clk 0:04:46.8]} 10... Nxf5 {[%clk 0:04:44.8]} 11. Qd2 {[%clk 0:04:42.2]}
11... Re8 {[%clk 0:04:42.9]} 12. Ne1 {[%clk 0:04:33.2]} 12... Nd7 {[%clk
0:04:32.4]} 13. Ne2 {[%clk 0:04:32]} 13... Qc7 {[%clk 0:04:26.9]} 14. c3 {[%clk
0:04:30.8]} 14... Re7 {[%clk 0:04:19.7]} 15. Nc2 {[%clk 0:04:21.9]} 15... Rae8
{[%clk 0:04:18.1]} 16. c4 {[%clk 0:04:13.1]} 16... dxc4 {[%clk 0:04:09.8]} 17.
b3 {[%clk 0:04:09.9]} 17... cxb3 {[%clk 0:04:07.3]} 18. axb3 {[%clk 0:04:08.6]}
18... a6 {[%clk 0:04:06.7]} 19. Qd3 {[%clk 0:04:05.1]} 19... Nxe3 {[%clk
0:04:02.9]} 20. fxe3 {[%clk 0:03:51.4]} 20... Nf6 {[%clk 0:03:57]} 21. Ng3
{[%clk 0:03:41.7]} 21... Bxg3 {[%clk 0:03:54]} 22. Rf3 {[%clk 0:03:39.3]} 22...
Bd6 {[%clk 0:03:43.4]} 23. Re1 {[%clk 0:03:35.4]} 23... Ne4 {[%clk 0:03:39]} 24.
Qc4 {[%clk 0:03:29.1]} 24... Nd2 {[%clk 0:03:30.6]} 25. Qxf7+ {[%clk 0:03:23.2]}
25... Rxf7 {[%clk 0:03:28.3]} 26. Rxf7 {[%clk 0:03:22.2]} 26... Qxf7 {[%clk
0:03:27.9]} 27. Re2 {[%clk 0:03:20.8]} 27... Ne4 {[%clk 0:03:25.8]} 28. Kh1
{[%clk 0:03:07.3]} 28... Ng3+ {[%clk 0:03:23.9]} 29. Kh2 {[%clk 0:03:06.1]}
29... Nxe2+ {[%clk 0:03:22.5]} 30. Kh1 {[%clk 0:03:04.2]} 30... Qf1# {[%clk
0:03:20.4]} 0-1

[Event "Live Chess"]
[Site "Chess.com"]
[Date "2023.05.20"]
[Round "-"]
[White "miguelchuk"]
[Black "GEMdzq"]
[Result "0-1"]
[WhiteElo "1639"]
[BlackElo "2371"]
[TimeControl "300"]
[EndTime "9:36:01 PDT"]
[Termination "GEMdzq won by resignation"]

1. e4 {[%clk 0:04:56.2]} 1... d6 {[%clk 0:04:57.1]} 2. d4 {[%clk 0:04:54.6]}
2... Nf6 {[%clk 0:04:56.6]} 3. Nc3 {[%clk 0:04:50.7]} 3... g6 {[%clk 0:04:56]}
4. Be3 {[%clk 0:04:45.6]} 4... Bg7 {[%clk 0:04:54.9]} 5. Qd2 {[%clk 0:04:44.8]}
5... c6 {[%clk 0:04:53.7]} 6. O-O-O {[%clk 0:04:43.3]} 6... b5 {[%clk
0:04:52.6]} 7. e5 {[%clk 0:04:40.1]} 7... dxe5 {[%clk 0:04:40.3]} 8. dxe5 {[%clk
0:04:32.6]} 8... Qxd2+ {[%clk 0:04:39.3]} 9. Rxd2 {[%clk 0:04:30.8]} 9... Ng4
{[%clk 0:04:38.6]} 10. Bg5 {[%clk 0:04:18.4]} 10... h6 {[%clk 0:04:21.4]} 11.
Bh4 {[%clk 0:04:07.2]} 11... Nxe5 {[%clk 0:04:20]} 12. Bxe7 {[%clk 0:03:59.9]}
12... Kxe7 {[%clk 0:04:17.9]} 13. Re2 {[%clk 0:03:42.8]} 13... Kd8 {[%clk
0:04:07.4]} 14. f4 {[%clk 0:03:30.9]} 14... Nc4 {[%clk 0:03:59.6]} 15. Re4
{[%clk 0:03:09.1]} 15... Bf5 {[%clk 0:03:49.9]} 16. Bxc4 {[%clk 0:03:03.2]}
16... Bxe4 {[%clk 0:03:44.5]} 17. Nxe4 {[%clk 0:02:36.3]} 17... bxc4 {[%clk
0:03:42.6]} 18. Nf3 {[%clk 0:02:34.4]} 18... Kc7 {[%clk 0:03:33.2]} 19. Rf1
{[%clk 0:02:23.4]} 19... Re8 {[%clk 0:03:28.9]} 20. Nc5 {[%clk 0:02:05.8]} 20...
Nd7 {[%clk 0:03:27.1]} 21. Na6+ {[%clk 0:01:49.6]} 21... Kb6 {[%clk 0:03:25]}
22. Nb4 {[%clk 0:01:43.1]} 22... a5 {[%clk 0:03:22.2]} 23. Rd1 {[%clk
0:01:11.8]} 23... Nc5 {[%clk 0:03:12.1]} 24. c3 {[%clk 0:00:56.8]} 24... axb4
{[%clk 0:03:10.5]} 25. cxb4 {[%clk 0:00:52]} 25... Nd3+ {[%clk 0:03:10.4]} 0-1

[Event "Live Chess"]
[Site "Chess.com"]
[Date "2023.05.20"]
[Round "-"]
[White "ConorMaclaud"]
[Black "NAZRIZ1977"]
[Result "1-0"]
[WhiteElo "2118"]
[BlackElo "2112"]
[TimeControl "300"]
[EndTime "9:36:12 PDT"]
[Termination "ConorMaclaud won by resignation"]

1. Nf3 {[%clk 0:04:57.7]} 1... g6 {[%clk 0:04:58.2]} 2. d4 {[%clk 0:04:57.2]}
2... Bg7 {[%clk 0:04:57.2]} 3. Bg5 {[%clk 0:04:57.1]} 3... c5 {[%clk 0:04:55.1]}
4. c3 {[%clk 0:04:56.5]} 4... Nf6 {[%clk 0:04:53.8]} 5. e3 {[%clk 0:04:55.4]}
5... O-O {[%clk 0:04:51.5]} 6. Be2 {[%clk 0:04:53.9]} 6... Qb6 {[%clk
0:04:50.2]} 7. Qb3 {[%clk 0:04:52.4]} 7... Qxb3 {[%clk 0:04:48.9]} 8. axb3
{[%clk 0:04:52.3]} 8... cxd4 {[%clk 0:04:43.6]} 9. exd4 {[%clk 0:04:51.5]} 9...
d6 {[%clk 0:04:43]} 10. Nbd2 {[%clk 0:04:50.6]} 10... Nc6 {[%clk 0:04:42.5]} 11.
O-O {[%clk 0:04:47]} 11... Bf5 {[%clk 0:04:38.9]} 12. Nh4 {[%clk 0:04:44.4]}
12... Bd7 {[%clk 0:04:36.9]} 13. Nc4 {[%clk 0:04:43.2]} 13... h6 {[%clk
0:04:35.6]} 14. Be3 {[%clk 0:04:40.7]} 14... Ng4 {[%clk 0:04:32.7]} 15. Bd2
{[%clk 0:04:36.9]} 15... d5 {[%clk 0:04:25]} 16. Ne3 {[%clk 0:04:33.7]} 16...
Nxe3 {[%clk 0:04:21.5]} 17. Bxe3 {[%clk 0:04:33.6]} 17... Bf6 {[%clk 0:04:19.3]}
18. Nf3 {[%clk 0:04:32.2]} 18... a6 {[%clk 0:04:13]} 19. Bxh6 {[%clk 0:04:30.4]}
19... Rfe8 {[%clk 0:04:11.5]} 20. Bf4 {[%clk 0:04:25.3]} 20... e5 {[%clk
0:04:09.1]} 21. dxe5 {[%clk 0:04:23.7]} 21... Nxe5 {[%clk 0:04:08.5]} 22. Nxe5
{[%clk 0:04:22.5]} 22... Bxe5 {[%clk 0:04:08.4]} 23. Bxe5 {[%clk 0:04:20.9]}
23... Rxe5 {[%clk 0:04:07.9]} 24. Bf3 {[%clk 0:04:17.5]} 24... Rae8 {[%clk
0:04:06.9]} 25. h3 {[%clk 0:04:12.9]} 25... Kg7 {[%clk 0:04:04.3]} 26. Rad1
{[%clk 0:04:11.1]} 26... Bc6 {[%clk 0:04:03.2]} 27. Rd4 {[%clk 0:04:09.7]} 27...
f5 {[%clk 0:03:59.1]} 28. Rfd1 {[%clk 0:04:07.8]} 28... g5 {[%clk 0:03:56.7]}
29. Bxd5 {[%clk 0:04:00.1]} 29... Re2 {[%clk 0:03:47.1]} 30. Bxc6 {[%clk
0:03:51.7]} 30... bxc6 {[%clk 0:03:47]} 31. Rd7+ {[%clk 0:03:41.7]} 31... R8e7
{[%clk 0:03:36.4]} 32. Rxe7+ {[%clk 0:03:39.4]} 32... Rxe7 {[%clk 0:03:36.3]}
33. Rd2 {[%clk 0:03:38.5]} 33... Rb7 {[%clk 0:03:33.4]} 34. b4 {[%clk
0:03:37.5]} 34... Kf6 {[%clk 0:03:32.3]} 35. Kf1 {[%clk 0:03:36.6]} 35... Ke5
{[%clk 0:03:31.1]} 36. Ke2 {[%clk 0:03:34.5]} 36... f4 {[%clk 0:03:27.3]} 37.
Kf3 {[%clk 0:03:33.4]} 1-0